Cogmind - Beta 11.1 @@@ ROGUE MODE // 2022.05.22 @ 01:17:45 Player: Ruxi Result: Self-destructed Performance ------------- Evolutions (1) 500 Regions Visited (2) 400 Robots Destroyed (51) 255 Value Destroyed (1113) 1113 Prototype IDs (1) 20 Alien Tech Used (0) 0 Bonus (76) 76 TOTAL SCORE: 2364 Bonus ------- High Alert Combat Kills 76 Cogmind --------- Core Integrity 16/400 Matter 280/300 Energy 265/265 System Corruption 2% Temperature Cool (0) Movement Walking (190) Ox1 Location -9/Materials Parts ------- > --- POWER (1) -------- Improved Ion Engine > --- PROPULSION (3) --- Aluminum Leg Aluminum Leg Aluminum Leg > --- UTILITY (3) ------ Large Storage Unit Utility Shielding Improved Utility Shielding > --- WEAPON (2) ------- Scythe Scythe > --- INVENTORY (15) --- Light Treads Light Treads Aluminum Leg Heat Sink Weight Redist. System Hardened Light Armor Plating EM Pulse Gun Heavy Assault Rifle Autogun Shotgun Grenade Launcher Scythe Peak State ------------ > --- POWER ------------ Improved Ion Engine > --- PROPULSION ------- Aluminum Leg Aluminum Leg Aluminum Leg > --- UTILITY ---------- Large Storage Unit Weight Redist. System Improved Signal Interpreter > --- WEAPON ----------- Scythe Scythe > --- INVENTORY -------- Light Ion Engine Light Ion Engine Improved Ion Engine Light Treads Light Treads Light Treads Aluminum Leg Heat Sink Medium Storage Unit Improved Utility Shielding EM Pulse Gun Heavy Assault Rifle Grenade Launcher Scythe Scythe [Rating: 19] Favorites ----------- Power Improved Ion Engine Engine Improved Ion Engine Propulsion Aluminum Leg Treads Light Treads Leg Aluminum Leg Utility Weight Redist. System Device Weight Redist. System Storage Large Storage Unit Processor Improved Signal Interpreter Protection Improved Utility Shielding Weapon EM Pulse Gun Energy Gun EM Pulse Gun Energy Cannon Beam Cannon Ballistic Gun Heavy Assault Rifle Launcher Grenade Launcher Slashing Weapon Scythe Build | -11 -10 -9 ------- Run | Scr Mat Mat Slots Evolved 2 | . . 2 Power . | . . . Propulsion 1 | . . 1 Utility 1 | . . 1 Weapon . | . . . Parts Attached 62 | 6 16 40 Power 5 | 1 1 3 Engine 5 | 1 1 3 Core . | . . . Reactor . | . . . Propulsion 19 | 2 1 16 Treads 9 | . . 9 Leg 10 | 2 1 7 Wheel . | . . . Hover . | . . . Flight . | . . . Utility 13 | 1 3 9 Device 3 | . 1 2 Storage 5 | 1 1 3 Processor 2 | . 1 1 Hackware . | . . . Protection 3 | . . 3 Artifact . | . . . Weapon 25 | 2 11 12 Energy Gun 10 | . 6 4 Energy Cannon 2 | . 2 . Ballistic Gun 3 | 2 . 1 Ballistic Cannon . | . . . Launcher 3 | . 1 2 Special Weapon . | . . . Impact Weapon . | . . . Slashing Weapon 7 | . 2 5 Piercing Weapon . | . . . Special Melee Weapon . | . . . Unidentified Prototypes . | . . . Parts Lost 23 | . 3 20 Power 4 | . 1 3 Propulsion 9 | . . 9 Utility 3 | . . 3 Weapon 7 | . 2 5 Highest Loss Streak 9 | . 3 9 To Critical Strikes 1 | . . 1 Average Slot Usage (%) 93 | . 91 93 Engine 10 | . 10 9 Treads 8 | . . 12 Leg 21 | . 28 17 Device 10 | . 6 12 Storage 12 | . 14 11 Processor 4 | . 2 4 Protection 1 | . . 2 Energy Gun 12 | . 21 6 Ballistic Gun 1 | . . 1 Slashing Weapon 9 | . 3 12 Naked Turns . | . . . Heaviest Build 34 | 11 18 34 Greatest Support 60 | 20 20 60 Greatest Overweight (x) 4 | . . 4 Average Overweight (x) . | . . . Largest Inventory Capacity 15 | 8 10 15 Average Capacity 11 | 6 8 14 Most Carried 15 | 5 9 15 Average Carried 9 | 2 7 10 Final Capacity 15 | 8 10 15 Final Carried 12 | 2 9 12 Class Distribution -------------------- 71% | Mutant 28% | Scavenger-Mutant Dominant Class ---------------- Mutant | -10/Materials Mutant | -9/Materials Resources | -11 -10 -9 ----------- Run | Scr Mat Mat Matter Collected 836 | 245 120 471 Remotely . | . . . Salvage Created 1430 | . 232 1198 Parts 114 | . 22 92 Haulers Intercepted 4 | . 2 2 Recyclers Shooed 2 | . . 2 Parts Field Recycled . | . . . Retrieved Matter . | . . . Parts Self-Destructed . | . . . Prevented . | . . . Kills | -11 -10 -9 ------- Run | Scr Mat Mat Combat Hostiles Destroyed 32 | . 5 27 Melee 8 | . . 8 Guns 5 | . 1 4 AOE 19 | . 4 15 Classes Destroyed 10 | . 6 4 Worker 3 | . 1 2 Builder 4 | . . 4 Tunneler 2 | . 1 1 Hauler 4 | . 2 2 Recycler 1 | . . 1 Watcher 5 | . 3 2 Swarmer 9 | . 3 6 Grunt 17 | . 2 15 Brawler 1 | . . 1 Sentry 5 | . . 5 Best Kill Streak 13 | . 8 13 Combat Bots Only 11 | . 3 11 Max Kills in Single Turn 3 | . 3 3 Gunslinging . | . . . Exploded 3 | . 3 3 Melee 1 | . . 1 Uniques/NPCs Destroyed . | . . . Combat | -11 -10 -9 -------- Run | Scr Mat Mat Damage Taken 2668 | . 337 2331 Core 467 | . 83 384 Absorbed by Shields . | . . . Redirected to Shielding 16 | . . 16 Core Remaining (%) 83 | 100 66 . Volleys Fired 59 | . 22 37 Largest 2 | . 2 2 Hottest 80 | . 80 80 Shots Fired 103 | . 40 63 Gun 90 | . 34 56 Cannon . | . . . Launcher 13 | . 6 7 Special . | . . . Kinetic 7 | . . 7 Thermal . | . . . Explosive 13 | . 6 7 Electromagnetic 83 | . 34 49 Robot Hit Streak 7 | . 4 7 Robot Miss Streak 6 | . 5 6 Penetration Max . | . . . Secondary Targets . | . . . Shots Hit Robots 89 | . 21 68 Core Hits 76 | . 18 58 Critical Kills . | . . . Critical Parts Destroyed . | . . . Critical Strikes 8 | . 2 6 Corrupt 2 | . 2 . Sever 6 | . . 6 Melee Attacks 56 | . 4 52 Impact . | . . . Slashing 56 | . 4 52 Piercing . | . . . Sneak Attacks 4 | . . 4 Combat Hostiles . | . . . Follow-up Attacks 5 | . . 5 Damage Inflicted 3566 | . 886 2680 Guns 712 | . 285 427 Cannons . | . . . Explosions 1608 | . 601 1007 Melee 1246 | . . 1246 Ramming . | . . . Kinetic 43 | . . 43 Thermal 203 | . 156 47 Explosive 1405 | . 445 960 Electromagnetic 669 | . 285 384 Impact . | . . . Slashing 1246 | . . 1246 Piercing . | . . . Highest Corruption 2 | . . 2 Average Corruption 2 | . . 2 Corruption Purged . | . . . Corruption Blocked . | . . . Effects 3 | . . 3 Message Errors 2 | . . 2 Data Loss (minor) 1 | . . 1 Overload Shots . | . . . Overflow Damage 124 | . 74 50 Projectiles . | . . . Explosions 87 | . 74 13 Melee 37 | . . 37 Knockbacks . | . . . Impact . | . . . Kinetic . | . . . Secondary . | . . . Self-Inflicted Damage 203 | . 158 45 Shots 5 | . 3 2 Rammed . | . . . Targets Rammed . | . . . Kicked . | . . . Crushed . | . . . Highest Temperature 81 | . 72 81 Average Temperature 23 | . 16 28 Received Heat Transfer 873 | . 27 846 Siege Activations . | . . . Robots Corrupted 1 | . 1 . Combat Hostiles . | . . . Parts Fried 3 | . 2 1 Impact Corruptions . | . . . Robots Melted . | . . . Combat Hostiles . | . . . Parts Melted . | . . . Heat Transferred 250 | . 150 100 Parts Sabotaged . | . . . Parts Stolen . | . . . Parts Stripped . | . . . Power Chain Reactions 2 | . 1 1 Missiles Intercepted . | . . . Alert | -11 -10 -9 ------- Run | Scr Mat Mat Peak Influence 536 | . 415 536 Initial 96 | . . 96 Average 277 | . 239 313 Maximum Alert Level 2 | . 2 2 Low Security (%) 19 | 100 25 12 Level 1 61 | . 51 71 Level 2 18 | . 22 16 Level 3 . | . . . Level 4 . | . . . Level 5 . | . . . High Security . | . . . Max Security . | . . . Squads Dispatched 5 | . . 5 Investigation 3 | . . 3 Extermination . | . . . Reinforcement 2 | . . 2 Assault . | . . . Garrison . | . . . Intercept . | . . . Searches Triggered . | . . . Construction Impeded . | . . . Haulers Reinforced . | . . . Active Scanning Responses . | . . . Cargo Convoy Interrupts . | . . . Stealth | -11 -10 -9 --------- Run | Scr Mat Mat Distress Signals 2 | . 1 1 Communications Jammed . | . . . Distress Signals . | . . . Times Spotted 46 | . 11 35 Peak Tracking Total 14 | . 7 14 Tactical Retreats 2 | . 2 . Traps | -11 -10 -9 ------- Run | Scr Mat Mat Traps Triggered 2 | . 1 1 Indirectly . | . . . Trap Hack Attempts . | . . . Triggered . | . . . Disarmed . | . . . Reprogrammed . | . . . Reused . | . . . Traps Extracted . | . . . Installed . | . . . Triggered . | . . . Machines | -11 -10 -9 ---------- Run | Scr Mat Mat Machines Disabled 4 | . 3 1 Max in Single Turn 2 | . 2 1 Machines Sabotaged . | . . . Garrisons Compromised . | . . . Overloaded Fab Kills . | . . . Hacking | -11 -10 -9 --------- Run | Scr Mat Mat Machines Accessed 8 | . 5 3 Terminals 7 | . 5 2 Fabricators . | . . . Repair Stations . | . . . Recycling Units . | . . . Scanalyzers 1 | . . 1 Garrison Access . | . . . Total Hacks 22 | . 14 8 Successful 5 | . 3 2 Failed 17 | . 11 6 Catastrophic 2 | . 1 1 Database Lockouts . | . . . Manual 22 | . 14 8 Terminals 21 | . 14 7 Fabricators . | . . . Repair Stations . | . . . Recycling Units . | . . . Scanalyzers 1 | . . 1 Garrison Access . | . . . Terminal Hacks . | . . . Fabricator Hacks . | . . . Repair Station Hacks . | . . . Recycling Unit Hacks . | . . . Scanalyzer . | . . . Garrison Access Hacks . | . . . Unauthorized Hacks 5 | . 3 2 Terminals 4 | . 3 1 Botnet 3 | . 2 1 Operators 1 | . 1 . Fabricators . | . . . Repair Stations . | . . . Recycling Units . | . . . Scanalyzers 1 | . . 1 Extract 1 | . . 1 Garrison Access . | . . . Data Cores Recovered . | . . . Used . | . . . Hacking Detections 7 | . 5 2 Full Trace Events 2 | . 1 1 Feedback Events . | . . . Feedback Blocked . | . . . Robot Schematics Acquired . | . . . Robots Built . | . . . Authchips . | . . . Time . | . . . Total Robot Build Rating . | . . . Part Schematics Acquired 5 | . . 5 Parts Built . | . . . Authchips . | . . . Time . | . . . Total Part Build Rating . | . . . Parts Repaired . | . . . Time . | . . . Parts Recycled . | . . . Recycled Matter . | . . . Retrieved Matter . | . . . Retrieved Components . | . . . Parts Scanalyzed . | . . . Part Schematics Acquired . | . . . Parts Damaged . | . . . Bothacking | -11 -10 -9 ------------ Run | Scr Mat Mat Used RIF Installer . | . . . Robots Hacked . | . . . Non-combat . | . . . Combat . | . . . Robot Hacks Applied . | . . . Relay Couplers Released . | . . . Fabnet Peak Effective % . | . . . Robots Rewired . | . . . Allies Hacked . | . . . Hacks Repelled . | . . . Allies | -11 -10 -9 -------- Run | Scr Mat Mat Total Allies . | . . . Largest Group . | . . . Highest-Rated Group . | . . . Highest-Rated Ally . | . . . Total Orders . | . . . Ally Attacks . | . . . Total Damage . | . . . Kills . | . . . Allies Corrupted . | . . . Allies Melted . | . . . Intel | -11 -10 -9 ------- Run | Scr Mat Mat Robot Analysis Total . | . . . Derelict Logs Recovered . | . . . Drone Launches . | . . . Drone Recoveries . | . . . Exploration | -11 -10 -9 ------------- Run | Scr Mat Mat Turns Passed 1694 | 50 614 1030 Spaces Moved 931 | 37 412 482 Core 10 | 9 . 1 Treads 148 | . . 148 Legs 773 | 28 412 333 Wheels . | . . . Hover . | . . . Flight . | . . . Fastest Speed 50 | 50 120 120 Average Speed 133 | 102 120 147 Slowest Speed 250 | 120 120 250 Overloaded Moves . | . . . Propulsion Burnouts . | . . . Robots Hopped . | . . . Cave-ins Triggered . | . . . Exploration Rate (%) 42 | 3 88 37 Regions Visited 2 Branch Regions . Pre-discovered Areas . | . . . Known Exits Taken . | . . . Unknown Exits Taken 2 | 1 1 . Scrap Searched . | . . . Spaces Dug 4 | . 2 2 Terrain Destroyed 102 | . 70 32 Melee 4 | . 2 2 Projectile . | . . . AOE 98 | . 68 30 Terrain Rammed . | . . . Walls Destroyed . | . . . Machines Disabled . | . . . Actions | -11 -10 -9 --------- Run | Scr Mat Mat Total 1184 | 47 482 655 Wait 27 | . 7 20 Move 929 | 36 411 482 Hop . | . . . Pick Up 38 | 5 12 21 Fast Attach 20 | 3 7 10 Attach 20 | 3 2 15 Detach 3 | . 1 2 Swap 22 | . 7 15 Drop 17 | . 9 8 Fire 59 | . 22 37 Melee 49 | . 4 45 Ram . | . . . Kick . | . . . Crush . | . . . Escape Stasis . | . . . Rewire . | . . . Trap . | . . . Miscellaneous . | . . . Route ------- -11/Scrapyard -10/Materials (discovered 5 exits: *Mat x3 / [*Min x2]) -9/Materials (discovered 2 exits: [*Mat] / [*Sto]) History --------- Turn | Location | Event 6 | -11/Scrapyard | Discovered new exit (range 15) 51 | -11/Scrapyard | Entered Materials 244 | -10/Materials | Discovered new exit (range 12) 247 | -10/Materials | Lost 3 parts (1p2w) 288 | -10/Materials | Discovered new exit (range 8) 312 | -10/Materials | Build established: Mutant 470 | -10/Materials | Discovered new exit (range 12) 582 | -10/Materials | Discovered new exit (range 16) 642 | -10/Materials | Discovered new exit (range 9) 665 | -10/Materials | Entered another Materials area 665 | -9/Materials | Evolved 2 slots: Propulsion x1, Utility x1 845 | -9/Materials | Lost 4 parts (1p2n1w) 1118 | -9/Materials | Discovered new exit (range 4) 1348 | -9/Materials | Build established: Scavenger-Mutant 1532 | -9/Materials | Core integrity fell below 50% 1569 | -9/Materials | Destroyed 11 combat bots 1596 | -9/Materials | Lost 9 parts (2p5n1u1w) 1633 | -9/Materials | Core integrity fell below 20% 1644 | -9/Materials | Discovered new exit (range 16) 1657 | -9/Materials | Lost 3 parts (2n1u) 1695 | -9/Materials | Self-destructed Last Messages --------------- 01666_ Acquired 10 matter. 01667_ K-01 Serf collects debris. 01667_ U-05 Engineer lays Concrete. 01667_ K-01 Serf collects debris. 01668_ U-05 Engineer lays Concrete. 01670_ Acquired Aluminum Leg. 01670_ K-01 Serf collects debris. 01671_ U-05 Engineer lays Concrete. 01673_ K-01 Serf collects debris. 01675_ U-05 Engineer lays Concrete. 01677_ K-01 Serf collects debris. 01678_ U-05 Engineer lays Concrete. 01680_ K-01 Serf collects debris. 01681_ U-05 Engineer lays Concrete. 01683_ Acquired Aluminum Leg. 01683_ U-05 Engineer lays Concrete. 01685_ K-01 Serf collects debris. 01690_ K-01 Serf cleans the Electrolysis Chamber. 01691_ K-01 Serf collects debris. 01694_ Acquired Aluminum Leg. Map ----- +----------------------------------------------------+ | ????????## """ """ ##???# #??????????????? | | ????????## ##???# #??????????????? | | ????????######+################+#########????????? | | ??????????### + = [ #????????? | | ????????????????? # #????????? | | ????????????????? # """ #????????? | | ??????????????????############ / """ #????????? | | ?????????????????????????????# # """ ]#????????? | | ?????????????????????????????# # #????????? | | ?????????????????????????????# ########????????? | | ????????????????????????#??### #???????????????? | | ???????????????????????# ?? # #???????????????? | | ???????????????????????# ?? # #???????????????? | | ???????????????????????# ? # #???????????????? | | ???????????????????????# """ # #???????????????? | | ???????????????????###?# """ # #???????????????? | | ??????????????????? ?# """ # #???????????????? | | ???????????# ?????""" ?# "" # ###########?????? | | ???????????# ""?"""" ?# """ # ???? | | ???????????#= ""?"""" # "" # ???? | | ???????????? """??"" # """ + ???? | | ????????????? """???" # # ####### ????? | | ??????????????? ??? # % # #???????????? | | ???????????????##+#######+#### #???????????? | | ???????????????# [ [[%| *! % ###?????????? | | ??????????###### *%[!=@ ""#?????????? | | ????? [ ! = T"#?????????? | | ???????######## k ! = ! ""#?????????? | | ??????????????# """k * != ###?????????? | | ??????????????# """ #???????????? | | ??????????????# """ !! % #???????????? | | ??????????????# !!%=% #???????????? | | ??????????????# !!** %%! #???????????? | | ??????????????+ k +???????????? | | ??????????????# o #???????????? | | ??????????????# ###+######+### #???????????? | | ??????????????## #????????= ?# k #???????????? | | ???????????????# ???????? ! # #???????????? | | ???????????????# ???????# # #???????????? | | ???????????????# ???????# # #???????????? | | ???????????????? ???????#/ # #???????????? | | ??????????????????????????# [ # #???????????? | | ??????????????????????????######## +???????????? | | ?????????????????????????????????? #???????????? | | ?????????????????????????????????? < #???????????? | | ?????????????????????????????????? #???????????? | | ??????????????????????????????????####???????????? | | ?????????????????????????????????????????????????? | | ?????????????????????????????????????????????????? | | ?????????????????????????????????????????????????? | +----------------------------------------------------+ Best States ------------- Heat Dissipation 38 Energy Generation 12 Energy Capacity 265 Matter Stores 300 Matter Capacity 300 Sight Range 18 Terrain Scan Density 10 Additional Mass Support 6 Armor Coverage 150 Utility Shielding 66 Evasion (%) 55 Recoil Reduction 3 Item Schematics ----------------- Terrain Scan Processor | -9/Materials | Extracted Imp. Medium Laser | -9/Materials | Extracted Field Recycling Unit | -9/Materials | Extracted Autogun | -9/Materials | Extracted Hcp. Matter Pod | -9/Materials | Extracted Robot Schematics ------------------ None Fabricated ------------ Nothing Alien Tech Used ----------------- None Achievements -------------- Let's See Who's Tougher Challenges ------------ None Game ------ Seed ZioniteControlCharge Manual? 0 Play Time 00:26:40 Cumulative 66.6 hours Start 2022.05.22 @ 00:53:45 End 2022.05.22 @ 01:17:45 Sessions 1 Manual Loads 0 Difficulty Rogue Special Mode None Game No. 48 Rogue 46 Adventurer 0 Explorer 2 Win Type - Total 0 Types 0/0/0/0/0/0/0/0/0 Lore% 24 Gallery% 30 Achievement% 26 Wizard Run 0 Options --------- ASCII 0 Keyboard 0 Movement Numpad Keybinds 0 Fullscreen 1 Font 18/SmallcapsGlow Map View 76x50 Tactical HUD 1 Map Filters NONE Filters NONE Steam 1 RUN: 4a549b30-1907-46e5-83fd-ed76e5855d6b